fUST/lending_fUST_20250102
["ID","MTS","AMOUNT","RATE_DAILY","PERIOD"]
[347385062,1735753833076,-4000.0,0.00018,3]
[347385063,1735753833085,-3766.92,0.00018,2]
[347385064,1735753833095,-500.0,0.00018,2]
[347385066,1735753833104,-517.04932389,0.00018,2]
[347385068,1735753833113,-257.917,0.00018058,2]
[347385069,1735753833122,-1835.84904492,0.00018058,2]
[347385094,1735753838572,-266.15095508,0.00018058,2]
[347385095,1735753838582,-627.928,0.00018058,2]
[347385096,1735753838591,-2426.0,0.00018058,2]
[347385097,1735753838600,-5164.75756255,0.00018095,2]
[347385098,1735753838610,-151.0,0.000181,2]
[347385099,1735753838619,-85.05625433,0.00018126,2]
[347385100,1735753838655,-98.17274567,0.00018126,2]
[347385101,1735753838665,-151.0,0.000182,2]
[347385102,1735753838674,-779.0,0.000183,2]
[347385103,1735753838684,-151.0,0.000184,2]
[347385104,1735753838693,-373.88585986,0.00018438,2]
[347385105,1735753838702,-151.0,0.000185,2]
[347385106,1735753838711,-160.0,0.00018548,4]
[347385107,1735753838721,-160.67045214,0.00018548,5]
[347385108,1735753838730,-151.0,0.000186,2]
[347385110,1735753838739,-173.77,0.000186,2]
[347385111,1735753838748,-151.0,0.000186,2]
[347385112,1735753838757,-150.17850295,0.00018603,2]
[347385113,1735753838767,-420.0,0.00018615,2]
[347385114,1735753838775,-150.17850295,0.00018685,2]
[347385115,1735753838785,-151.0,0.000187,2]
[347385116,1735753838794,-151.0,0.000187,2]
[347385117,1735753838803,-228.0,0.0001878,2]
[347385118,1735753838813,-150.17850295,0.00018795,2]
[347385119,1735753838822,-151.0,0.000188,2]
[347385120,1735753838831,-151.0,0.000188,2]
[347385121,1735753838840,-363.162,0.00018849,2]
[347385122,1735753838849,-153.0,0.00018849,2]
[347385123,1735753838858,-153.0,0.00018849,2]
[347385124,1735753838867,-428.8825702,0.00018849,2]
[347385125,1735753838876,-153.5878957,0.00018849,2]
[347385126,1735753838885,-153.0,0.00018849,2]
[347385127,1735753838894,-153.0,0.00018849,2]
[347385128,1735753838904,-153.5878957,0.00018849,2]
[347385129,1735753838913,-153.0,0.00018849,2]
[347385130,1735753838922,-153.5878957,0.00018849,2]
[347385131,1735753838931,-153.0,0.00018849,2]
[347385132,1735753838942,-150.17850295,0.00018877,2]
[347385133,1735753838953,-151.0,0.000189,2]
[347385134,1735753838961,-151.0,0.000189,2]
[347385135,1735753838970,-150.17850295,0.00018959,2]
[347385136,1735753838980,-160.58290988,0.00018968,2]
[347385137,1735753838989,-182.0,0.00018972,2]
[347385138,1735753838998,-1000.0,0.00019,19]
[347385139,1735753839007,-1000.0,0.00019,2]
[347385140,1735753839016,-500.0,0.00019008,2]
[347385141,1735753839026,-219.14500625,0.00019008,2]
[347385142,1735753839035,-53954.358188,0.00019009,2]
[347385143,1735753839044,-150.17850295,0.00019068,2]
[347385144,1735753839053,-3000.0,0.00019078,2]
[347385145,1735753839063,-7991.267731,0.00019093,2]
[347385146,1735753839072,-151.0,0.000191,2]
[347385147,1735753839081,-151.0,0.000191,2]
[347385148,1735753839090,-150.17850295,0.00019151,2]
[347385149,1735753839099,-500.0,0.00019173,2]
[347385150,1735753839108,-500.0,0.00019173,2]
[347385151,1735753839117,-500.0,0.00019173,2]
[347385152,1735753839126,-500.0,0.00019173,2]
[347385153,1735753839138,-500.0,0.00019173,2]
[347385154,1735753839147,-500.0,0.00019173,2]
[347385155,1735753839156,-500.0,0.00019173,2]
[347385156,1735753839165,-500.0,0.00019173,2]
[347385157,1735753839174,-250.91881984,0.00019177,2]
[347385158,1735753839183,-2198.08235037,0.00019178,2]
[347385159,1735753839193,-26653.00005879,0.00019178,2]
[347385160,1735753839202,-271.030568,0.00019178,2]
[347385161,1735753839212,-151.0,0.00019178,2]
[347385162,1735753839221,-151.0,0.00019178,2]
[347385163,1735753839230,-151.0,0.00019178,2]
[347385164,1735753839239,-151.0,0.00019178,2]
[347385165,1735753839249,-151.0,0.00019178,2]
[347385166,1735753839258,-159.608969,0.00019178,2]
[347385167,1735753839267,-151.0,0.00019178,2]
[347385168,1735753839276,-151.0,0.00019178,2]
[347385169,1735753839285,-151.0,0.00019178,2]
[347385170,1735753839294,-151.0,0.00019178,2]
[347385171,1735753839303,-151.0,0.00019178,2]
[347385172,1735753839313,-151.0,0.00019178,2]
[347385173,1735753839321,-255.522574,0.00019178,2]
[347385174,1735753839330,-151.0,0.00019178,2]
[347385175,1735753839341,-151.0,0.00019178,2]
[347385176,1735753839350,-188.823429,0.00019178,2]
[347385177,1735753839359,-266.290232,0.00019178,2]
[347385178,1735753839370,-266.290232,0.00019178,2]
[347385179,1735753839379,-266.290232,0.00019178,2]
[347385180,1735753839388,-266.290232,0.00019178,2]
[347385181,1735753839397,-266.290232,0.00019178,2]
[347385182,1735753839406,-266.290232,0.00019178,2]
[347385183,1735753839416,-151.0,0.00019178,2]
[347385184,1735753839425,-151.0,0.00019178,2]
[347385185,1735753839435,-151.0,0.00019178,2]
[347385186,1735753839445,-500.0,0.00019178,2]
[347385187,1735753839454,-159.953857,0.00019178,2]
[347385188,1735753839463,-500.0,0.00019178,2]
[347385189,1735753839473,-500.0,0.00019178,2]
[347385190,1735753839482,-495.40703927,0.00019178,2]
[347385191,1735753839491,-266.18337029,0.00019178,2]
[347385192,1735753839500,-227.306783,0.00019178,2]
[347385193,1735753839509,-227.306783,0.00019178,2]
[347385194,1735753839518,-227.306783,0.00019178,2]
[347385195,1735753839527,-554.14804999,0.00019178,2]
[347385196,1735753839536,-227.306783,0.00019178,2]
[347385197,1735753839545,-227.306783,0.00019178,2]
[347385198,1735753839555,-585.23488923,0.00019178,2]
[347385199,1735753839564,-227.306783,0.00019178,2]
[347385200,1735753839573,-500.0,0.00019178,2]
[347385201,1735753839583,-515.1983499,0.00019178,2]
[347385202,1735753839593,-507.68198953,0.00019178,2]
[347385203,1735753839602,-500.0,0.00019178,2]
[347385204,1735753839612,-500.0,0.00019178,2]
[347385205,1735753839621,-151.0,0.00019178,2]
[347385206,1735753839744,-151.0,0.00019178,2]
[347385207,1735753839755,-151.0,0.00019178,2]
[347385208,1735753839764,-500.0,0.00019178,2]
[347385209,1735753839774,-151.0,0.00019178,2]
[347385210,1735753839783,-151.0,0.00019178,2]
[347385211,1735753839792,-500.0,0.00019178,2]
[347385212,1735753839801,-151.0,0.00019178,2]
[347385213,1735753839810,-500.0,0.00019178,2]
[347385214,1735753839819,-500.0,0.00019178,2]
[347385215,1735753839828,-500.0,0.00019178,2]
[347385216,1735753839838,-500.0,0.00019178,2]
[347385217,1735753839847,-500.0,0.00019178,2]
[347385218,1735753839856,-151.0,0.00019178,2]
[347385219,1735753839865,-6483.56,0.00019178,2]
[347385220,1735753839874,-151.0,0.00019178,2]
[347385221,1735753839883,-151.0,0.00019178,2]
[347385222,1735753839892,-500.0,0.00019178,2]
[347385223,1735753839902,-500.0,0.00019178,2]
[347385224,1735753839912,-500.0,0.00019178,2]
[347385225,1735753839922,-500.0,0.00019178,2]
[347385226,1735753839933,-504.4683239,0.00019178,2]
[347385227,1735753839942,-628.01681434,0.00019178,2]
[347385228,1735753839951,-502.27029324,0.00019178,2]
[347385229,1735753839960,-501.34607542,0.00019178,2]
[347385230,1735753839969,-151.0,0.00019178,2]
[347385231,1735753839979,-151.0,0.00019178,2]
[347385232,1735753839988,-505.07325231,0.00019178,2]
[347385233,1735753839997,-507.83132206,0.00019178,2]
[347385234,1735753840006,-728.63,0.00019178,2]
[347385235,1735753840015,-500.0,0.00019178,2]
[347385236,1735753840025,-500.0,0.00019178,2]
[347385237,1735753840034,-500.0,0.00019178,2]
[347385238,1735753840043,-500.0,0.00019178,2]
[347385239,1735753840052,-500.0,0.00019178,2]
[347385240,1735753840062,-443.70955227,0.00019178,2]
[347385241,1735753840071,-500.0,0.00019178,2]
[347385242,1735753840080,-500.0,0.00019178,2]
[347385243,1735753840089,-1019.02,0.00019178,2]
[347385244,1735753840098,-500.0,0.00019178,2]
[347385245,1735753840107,-502.38442439,0.00019178,2]
[347385246,1735753840116,-500.0,0.00019178,2]
[347385247,1735753840126,-7611.06,0.00019178,2]
[347385248,1735753840142,-500.0,0.00019178,2]
[347385249,1735753840152,-500.0,0.00019178,2]
[347385251,1735753840161,-314.13579962,0.00019178,2]
[347385252,1735753840170,-500.0,0.00019178,2]
[347385254,1735753840182,-408.0403474,0.00019178,2]
[347385255,1735753840191,-500.0,0.00019178,2]
[347385256,1735753840200,-500.0,0.00019178,2]
[347385257,1735753840210,-500.0,0.00019178,2]
[347385258,1735753840219,-500.0,0.00019178,2]
[347385259,1735753840229,-500.0,0.00019178,2]
[347385260,1735753840239,-500.0,0.00019178,2]
[347385261,1735753840248,-500.0,0.00019178,2]
[347385262,1735753840257,-500.0,0.00019178,2]
[347385264,1735753840266,-500.0,0.00019178,2]
[347385266,1735753840276,-500.0,0.00019178,2]
[347385267,1735753840285,-500.0,0.00019178,2]
[347385269,1735753840294,-500.0,0.00019178,2]
[347385271,1735753840305,-500.0,0.00019178,2]
[347385272,1735753840315,-753.78,0.00019178,2]
[347385273,1735753840323,-500.0,0.00019178,2]
[347385275,1735753840333,-500.0,0.00019178,2]
[347385276,1735753840342,-500.0,0.00019178,2]
[347385278,1735753840351,-500.0,0.00019178,2]
[347385280,1735753840360,-1000.0,0.00019178,2]
[347385282,1735753840369,-500.0,0.00019178,2]
[347385283,1735753840379,-500.0,0.00019178,2]
[347385285,1735753840388,-500.0,0.00019178,2]
[347385286,1735753840397,-500.0,0.00019178,2]
[347385287,1735753840406,-500.0,0.00019178,2]
[347385288,1735753840416,-500.0,0.00019178,2]
[347385289,1735753840425,-500.0,0.00019178,2]
[347385290,1735753840434,-500.0,0.00019178,2]
[347385291,1735753840443,-500.0,0.00019178,2]
[347385292,1735753840452,-500.0,0.00019178,2]
[347385293,1735753840462,-1194.25,0.00019178,2]
[347385294,1735753840471,-322.77559653,0.00019178,2]
[347385295,1735753840480,-500.0,0.00019178,2]
[347385296,1735753840489,-500.0,0.00019178,2]
[347385297,1735753840498,-501.55079268,0.00019178,2]
[347385298,1735753840507,-500.0,0.00019178,2]
[347385299,1735753840516,-500.0,0.00019178,2]
[347385300,1735753840525,-195.7583053,0.00019178,2]
[347385301,1735753840534,-500.0,0.00019178,2]
[347385302,1735753840543,-500.31788548,0.00019178,2]
[347385303,1735753840553,-850.59,0.00019178,2]
[347385304,1735753840562,-500.0,0.00019178,2]
[347385305,1735753840571,-500.0,0.00019178,2]
[347385306,1735753840581,-500.0,0.00019178,2]
[347385307,1735753840590,-500.0,0.00019178,2]
[347385308,1735753840599,-500.0,0.00019178,2]
[347385309,1735753840609,-500.0,0.00019178,2]
[347385310,1735753840619,-500.0,0.00019178,2]
[347385311,1735753840629,-500.0,0.00019178,2]
[347385312,1735753840639,-500.0,0.00019178,2]
[347385313,1735753840649,-500.0,0.00019178,2]
[347385314,1735753840661,-500.1747361,0.00019178,2]
[347385315,1735753840671,-500.0,0.00019178,2]
[347385316,1735753840681,-500.0,0.00019178,2]
[347385317,1735753840692,-500.0,0.00019178,2]
[347385318,1735753840701,-500.0,0.00019178,2]
[347385320,1735753840710,-500.0,0.00019178,2]
[347385322,1735753840719,-500.0,0.00019178,2]
[347385325,1735753840728,-500.0,0.00019178,2]
[347385327,1735753840737,-500.0,0.00019178,2]
[347385329,1735753840746,-516.42741851,0.00019178,2]
[347385330,1735753840755,-534.39,0.00019178,2]
[347385331,1735753840764,-500.0,0.00019178,2]
[347385332,1735753840772,-500.0,0.00019178,2]
[347385333,1735753840781,-150.0,0.00019178,2]
[347385334,1735753840790,-500.0,0.00019178,2]
[347385335,1735753840799,-500.0,0.00019178,2]
[347385336,1735753840808,-500.0,0.00019178,2]
[347385337,1735753840817,-502.27891798,0.00019178,2]
[347385338,1735753840826,-500.0,0.00019178,2]
[347385339,1735753840836,-151.0,0.00019178,2]
[347385340,1735753840847,-151.0,0.00019178,2]
[347385341,1735753840856,-151.0,0.00019178,2]
[347385342,1735753840865,-500.0,0.00019178,2]
[347385343,1735753840873,-500.0,0.00019178,2]
[347385344,1735753840883,-500.0,0.00019178,2]
[347385345,1735753840891,-500.0,0.00019178,2]
[347385346,1735753840900,-500.0,0.00019178,2]
[347385347,1735753840909,-500.0,0.00019178,2]
[347385348,1735753840918,-500.0,0.00019178,2]
[347385349,1735753840927,-500.0,0.00019178,2]
[347385350,1735753840936,-500.0,0.00019178,2]
[347385351,1735753840945,-500.0,0.00019178,2]
[347385352,1735753840955,-579.91,0.00019178,2]
[347385353,1735753840964,-500.0,0.00019178,2]
[347385354,1735753840973,-500.0,0.00019178,2]
[347385355,1735753840982,-500.55699205,0.00019178,2]
[347385356,1735753840991,-500.0,0.00019178,2]
[347385357,1735753841001,-500.0,0.00019178,2]
[347385358,1735753841011,-500.0,0.00019178,2]
[347385359,1735753841020,-500.0,0.00019178,2]
[347385360,1735753841029,-500.0,0.00019178,2]
[347385361,1735753841039,-500.0,0.00019178,2]
[347385362,1735753841048,-500.0,0.00019178,2]
[347385363,1735753841057,-503.55581532,0.00019178,2]
[347385364,1735753841066,-500.0,0.00019178,2]
[347385365,1735753841075,-500.0,0.00019178,2]
[347385366,1735753841084,-500.0,0.00019178,2]
[347385367,1735753841095,-507.63716355,0.00019178,2]
[347385368,1735753841104,-500.0,0.00019178,2]
[347385369,1735753841113,-500.0,0.00019178,2]
[347385370,1735753841122,-501.28226224,0.00019178,2]
[347385371,1735753841131,-500.0,0.00019178,2]
[347385372,1735753841140,-500.0,0.00019178,2]
[347385373,1735753841149,-267.59197443,0.00019178,2]
[347385374,1735753841159,-502.1206451,0.00019178,2]
[347385375,1735753841168,-500.0,0.00019178,2]
[347385376,1735753841177,-500.0,0.00019178,2]
[347385377,1735753841187,-500.0,0.00019178,2]
[347385378,1735753841196,-502.05634607,0.00019178,2]
[347385379,1735753841206,-500.0,0.00019178,2]
[347385380,1735753841215,-500.0,0.00019178,2]
[347385381,1735753841224,-500.0,0.00019178,2]
[347385382,1735753841233,-500.0,0.00019178,2]
[347385383,1735753841242,-500.0,0.00019178,2]
[347385384,1735753841252,-502.87984027,0.00019178,2]
[347385385,1735753841261,-226.962315,0.00019178,2]
[347385386,1735753841270,-226.962315,0.00019178,2]
[347385387,1735753841279,-226.962315,0.00019178,2]
[347385388,1735753841290,-501.86166244,0.00019178,2]
[347385389,1735753841299,-500.0,0.00019178,2]
[347385390,1735753841309,-226.962315,0.00019178,2]
[347385391,1735753841318,-226.962315,0.00019178,2]
[347385393,1735753841327,-500.0,0.00019178,2]
[347385394,1735753841336,-500.0,0.00019178,2]
[347385395,1735753841347,-226.962315,0.00019178,2]
[347385396,1735753841357,-500.0,0.00019178,2]
[347385397,1735753841366,-523.74914516,0.00019178,2]
[347385399,1735753841375,-500.0,0.00019178,2]
[347385401,1735753841384,-500.0,0.00019178,2]
[347385403,1735753841393,-341.35368953,0.00019178,2]
[347385406,1735753841801,-394.0,0.00018058,2]
[347385407,1735753841811,-158.64631047,0.00019178,2]
[347385408,1735753841823,-168.08722573,0.00019178,2]
[347385409,1735753841944,-332.75341037,0.00019178,2]
[347385410,1735753841954,-500.0,0.00019178,2]
[347385411,1735753841964,-112.25442181,0.00019178,2]
[347385412,1735753841976,-387.74557819,0.00019178,2]
[347385413,1735753841985,-500.0,0.00019178,2]
[347385414,1735753841996,-500.0,0.00019178,2]
[347385415,1735753842006,-500.0,0.00019178,2]
[347385416,1735753842015,-500.0,0.00019178,2]
[347385417,1735753842024,-645.23040515,0.00019178,2]
[347385418,1735753842034,-500.0,0.00019178,2]
[347385419,1735753842043,-231.107611,0.00019178,2]
[347385420,1735753842053,-231.107611,0.00019178,2]
[347385421,1735753842062,-231.107611,0.00019178,2]
[347385422,1735753842071,-500.0,0.00019178,2]
[347385423,1735753842081,-500.0,0.00019178,2]
[347385424,1735753842091,-502.95489675,0.00019178,2]
[347385425,1735753842100,-231.107611,0.00019178,2]
[347385426,1735753842109,-231.107611,0.00019178,2]
[347385427,1735753842119,-231.107611,0.00019178,2]
[347385428,1735753842128,-500.0,0.00019178,2]
[347385429,1735753842141,-786.61,0.00019178,2]
[347385430,1735753842151,-500.0,0.00019178,2]
[347385431,1735753842160,-500.0,0.00019178,2]
[347385432,1735753842170,-500.0,0.00019178,2]
[347385433,1735753842179,-500.0,0.00019178,2]
[347385434,1735753842188,-500.0,0.00019178,2]
[347385435,1735753842198,-1783.81,0.00019178,2]
[347385436,1735753842207,-500.0,0.00019178,2]
[347385437,1735753842220,-500.0,0.00019178,2]
[347385438,1735753842229,-151.0,0.00019178,2]
[347385439,1735753842239,-151.0,0.00019178,2]
[347385440,1735753842248,-151.0,0.00019178,2]
[347385441,1735753842258,-500.42297399,0.00019178,2]
[347385442,1735753842267,-500.98345046,0.00019178,2]
[347385443,1735753842276,-500.0,0.00019178,2]
[347385444,1735753842286,-500.0,0.00019178,2]
[347385445,1735753842295,-500.0,0.00019178,2]
[347385446,1735753842304,-500.0800814,0.00019178,2]
[347385447,1735753842313,-500.0,0.00019178,2]
[347385448,1735753842322,-500.24294351,0.00019178,2]
[347385449,1735753842332,-643.53979108,0.00019178,2]
[347385450,1735753842342,-151.0,0.00019178,2]
[347385451,1735753842352,-151.0,0.00019178,2]
[347385452,1735753842364,-151.0,0.00019178,2]
[347385453,1735753842376,-506.64147036,0.00019178,2]
[347385454,1735753842389,-500.0,0.00019178,2]
[347385455,1735753842398,-151.0,0.00019178,2]
[347385456,1735753842408,-971.28,0.00019178,2]
[347385457,1735753842417,-500.0,0.00019178,2]
[347385458,1735753842426,-151.0,0.00019178,2]
[347385459,1735753842436,-151.0,0.00019178,2]
[347385460,1735753842446,-500.0,0.00019178,2]
[347385461,1735753842455,-500.0,0.00019178,2]
[347385462,1735753842464,-500.0,0.00019178,2]
[347385463,1735753842475,-500.0,0.00019178,2]
[347385464,1735753842485,-500.0,0.00019178,2]
[347385465,1735753842494,-500.0,0.00019178,2]
[347385466,1735753842505,-500.0,0.00019178,2]
[347385467,1735753842515,-522.10950238,0.00019178,2]
[347385468,1735753842525,-500.0,0.00019178,2]
[347385469,1735753842534,-709.51,0.00019178,2]
[347385470,1735753842544,-500.0,0.00019178,2]
[347385471,1735753842553,-500.0,0.00019178,2]
[347385472,1735753842563,-295.867645,0.00019178,2]
[347385473,1735753842572,-295.867645,0.00019178,2]
[347385474,1735753842582,-295.867645,0.00019178,2]
[347385475,1735753842592,-500.0,0.00019178,2]
[347385476,1735753842601,-500.0,0.00019178,2]
[347385477,1735753842611,-295.867645,0.00019178,2]
[347385478,1735753842620,-295.867645,0.00019178,2]
[347385479,1735753842630,-500.4765848,0.00019178,2]
[347385480,1735753842639,-295.867645,0.00019178,2]
[347385481,1735753842649,-500.0,0.00019178,2]
[347385482,1735753842658,-485.79631426,0.00019178,2]
[347385483,1735753842668,-492.43888651,0.00019178,2]
[347385484,1735753842683,-84.57111349,0.00019178,2]
[347385485,1735753842693,-500.0,0.00019178,2]
[347385486,1735753842702,-500.0,0.00019178,2]
[347385487,1735753842712,-500.0,0.00019178,2]
[347385488,1735753842721,-500.0,0.00019178,2]
[347385489,1735753842731,-500.0,0.00019178,2]
[347385490,1735753842740,-281.42888651,0.00019178,2]
[347385567,1735753843705,-1143.67111217,0.000186,2]
[347385569,1735753843715,-810.20111349,0.00019178,2]
[347385571,1735753843724,-500.0,0.00019178,2]
[347385573,1735753843734,-500.50975555,0.00019178,2]
[347385575,1735753843743,-4268.97,0.00019178,2]
[347385577,1735753843752,-1161.55,0.00019178,2]
[347385579,1735753843762,-500.0,0.00019178,2]
[347385581,1735753843771,-500.0,0.00019178,2]
[347385583,1735753843781,-500.0,0.00019178,2]
[347385585,1735753843790,-500.0,0.00019178,2]
[347385587,1735753843799,-527.7,0.00019178,2]
[347385589,1735753843809,-204.92560557,0.00019178,2]
[347385591,1735753843821,-295.07439443,0.00019178,2]
[347385593,1735753843830,-426.19559657,0.00019178,2]
[347385603,1735753843944,-73.80440343,0.00019178,2]
[347385604,1735753843954,-383.52264034,0.00019178,2]
[347385605,1735753843963,-441.487011,0.00019178,2]
[347385606,1735753844098,-58.512989,0.00019178,2]
[347385607,1735753844110,-501.64212445,0.00019178,2]
[347385608,1735753844119,-1119.28,0.00019178,2]
[347385609,1735753844129,-500.0,0.00019178,2]
[347385610,1735753844142,-500.82494518,0.00019178,2]
[347385611,1735753844151,-500.0,0.00019178,2]
[347385612,1735753844160,-500.0,0.00019178,2]
[347385613,1735753844170,-500.0,0.00019178,2]
[347385614,1735753844179,-500.0,0.00019178,2]
[347385615,1735753844189,-500.0,0.00019178,2]
[347385616,1735753844198,-500.0,0.00019178,2]
[347385617,1735753844208,-500.0,0.00019178,2]
[347385618,1735753844218,-500.0,0.00019178,2]
[347385619,1735753844227,-500.0,0.00019178,2]
[347385620,1735753844237,-500.0,0.00019178,2]
[347385621,1735753844246,-500.0,0.00019178,2]
[347385622,1735753844255,-546.35871628,0.00019178,2]
[347385623,1735753844265,-500.0,0.00019178,2]
[347385624,1735753844274,-624.78367011,0.00019178,2]
[347385625,1735753844283,-500.0,0.00019178,2]
[347385626,1735753844292,-500.0,0.00019178,2]
[347385627,1735753844304,-500.0,0.00019178,2]
[347385628,1735753844314,-151.0,0.00019178,2]
[347385629,1735753844323,-665.299968,0.00019178,2]
[347385630,1735753844332,-501.70122586,0.00019178,2]
[347385631,1735753844342,-152.331409,0.00019178,2]
[347385632,1735753844353,-665.299968,0.00019178,2]
[347385633,1735753844366,-665.299968,0.00019178,2]
[347385634,1735753844379,-500.0,0.00019178,2]
[347385635,1735753844388,-500.0,0.00019178,2]
[347385636,1735753844398,-500.0,0.00019178,2]
[347385637,1735753844408,-665.299968,0.00019178,2]
[347385638,1735753844418,-665.299968,0.00019178,2]
[347385639,1735753844427,-500.0,0.00019178,2]
[347385640,1735753844436,-665.299968,0.00019178,2]
[347385641,1735753844446,-500.0,0.00019178,2]
[347385642,1735753844455,-500.0,0.00019178,2]
[347385643,1735753844465,-500.0,0.00019178,2]
[347385644,1735753844474,-500.0,0.00019178,2]
[347385645,1735753844483,-500.0,0.00019178,2]
[347385646,1735753844493,-351.76511212,0.00019178,2]
[347385647,1735753844507,-148.23488788,0.00019178,2]
[347385648,1735753844517,-500.0,0.00019178,2]
[347385649,1735753844526,-500.0,0.00019178,2]
[347385650,1735753844535,-500.0,0.00019178,2]
[347385651,1735753844544,-500.0,0.00019178,2]
[347385652,1735753844553,-500.0,0.00019178,2]
[347385653,1735753844563,-151.0,0.00019178,2]
[347385654,1735753844573,-620.85,0.00019178,2]
[347385655,1735753844583,-500.0,0.00019178,2]
[347385656,1735753844592,-526.8516863,0.00019178,2]
[347385657,1735753844601,-192.28575249,0.00019178,2]
[347385658,1735753844613,-307.71424751,0.00019178,2]
[347385659,1735753844622,-500.0,0.00019178,2]
[347385660,1735753844632,-500.0,0.00019178,2]
[347385661,1735753844641,-500.0,0.00019178,2]
[347385662,1735753844650,-119.97278572,0.00019178,2]
[347385663,1735753844662,-382.30264154,0.00019178,2]
[347385664,1735753844671,-77.41912115,0.00019178,2]
[347385669,1735753846675,-2144.38087885,0.00019178,2]
[347385670,1735753846684,-500.0,0.00019178,2]
[347385671,1735753846695,-500.0,0.00019178,2]
[347385672,1735753846704,-500.0,0.00019178,2]
[347385673,1735753846714,-500.0,0.00019178,2]
[347385674,1735753846724,-735.66,0.00019178,2]
[347385675,1735753846733,-735.66,0.00019178,2]
[347385676,1735753846742,-735.66,0.00019178,2]
[347385677,1735753846751,-500.0,0.00019178,2]
[347385678,1735753846761,-735.66,0.00019178,2]
[347385679,1735753846770,-500.0,0.00019178,2]
[347385681,1735753846780,-735.66,0.00019178,2]
[347385683,1735753846789,-500.0,0.00019178,2]
[347385685,1735753846798,-735.66,0.00019178,2]
[347385686,1735753846808,-735.66,0.00019178,2]
[347385687,1735753846817,-735.66,0.00019178,2]
[347385688,1735753846826,-735.66,0.00019178,2]
[347385689,1735753846835,-735.66,0.00019178,2]
[347385690,1735753846844,-406.98952115,0.00019178,2]
[347385691,1735753846857,-328.67047885,0.00019178,2]
[347385692,1735753846866,-640.14,0.00019178,2]
[347385693,1735753846875,-735.66,0.00019178,2]
[347385694,1735753846884,-500.12494472,0.00019178,2]
[347385695,1735753846894,-735.66,0.00019178,2]
[347385696,1735753846903,-224.26403124,0.00019178,2]
[347385697,1735753847038,-511.39596876,0.00019178,2]
[347385698,1735753847047,-500.0,0.00019178,2]
[347385699,1735753847057,-500.0,0.00019178,2]
[347385700,1735753847066,-500.0,0.00019178,2]
[347385701,1735753847075,-139.56996424,0.00019178,2]
[347385702,1735753847096,-596.09003576,0.00019178,2]
[347385703,1735753847104,-436.45937202,0.00019178,2]
[347385741,1735754803115,-160.941588,0.00013155,2]
[347385742,1735754803136,-88.87898525,0.00013288,2]
[347385747,1735754930627,-72.06260275,0.00013288,2]
[347385748,1735754930658,-160.941588,0.00013973,2]
[347385749,1735754930686,-839.80622227,0.00017013,2]
[347385750,1735754930735,-161.63192443,0.00017013,2]
[347385751,1735754930762,-500.0,0.00017044,2]
[347385752,1735754930790,-398.08611361,0.00017335,2]
[347385753,1735754930827,-1072.81041302,0.00017335,2]
[347386827,1735755031909,-1412.68440811,0.0001699,2]
[347386828,1735755031919,-1412.68440811,0.00017162,2]
[347386829,1735755031930,-5742.39068244,0.00017335,2]
[347386830,1735755031942,-652.75452199,0.00017335,2]